bitfinex-derivatives/quotes_BTCF0:USTF0_20240820
["timestamp","ask_amount","ask_price","bid_price","bid_amount"]
[1724171178716,0.66996652,58946.0,58945.0,0.067844]
[1724171178909,0.66996652,58946.0,58945.0,0.11865872]
[1724171179508,0.60212352,58946.0,58945.0,0.11865872]
[1724171181012,0.60212352,58946.0,58945.0,0.067844]
[1724171181317,0.3746878,58946.0,58945.0,0.067844]
[1724171181815,0.42526851,58946.0,58945.0,0.067844]
[1724171182614,0.42526851,58946.0,58945.0,0.135688]
[1724171182909,0.3668,58946.0,58945.0,0.135688]
[1724171183117,0.3668,58946.0,58945.0,0.20343777]
[1724171183813,0.3658,58946.0,58945.0,0.20343777]
[1724171184630,0.3668,58946.0,58945.0,0.20343777]
[1724171185117,0.05057817,58954.0,58946.0,0.50896]
[1724171185319,0.3608,58979.0,58960.0,0.067827]
[1724171185320,0.05057817,58964.0,58960.0,0.067827]
[1724171185518,0.29533388,58969.0,58968.0,0.067818]
[1724171185712,0.29813292,58969.0,58968.0,0.067818]
[1724171186106,0.29813292,58969.0,58968.0,3.837818]
[1724171186517,0.29813292,58969.0,58968.0,3.88855101]
[1724171186716,0.45813292,58969.0,58968.0,3.88855101]
[1724171186915,0.52594892,58969.0,58968.0,3.77]
[1724171187119,0.52794892,58969.0,58968.0,3.771]
[1724171187616,0.51463908,58969.0,58968.0,3.839818]
[1724171187815,0.46413292,58969.0,58968.0,3.839818]
[1724171188120,0.51462258,58969.0,58968.0,3.839818]
[1724171188907,0.46413292,58969.0,58968.0,3.839818]
[1724171190917,1.02338258,58969.0,58968.0,3.839818]
[1724171192222,0.97289292,58969.0,58968.0,3.839818]
[1724171192416,0.97289292,58969.0,58968.0,0.069818]
[1724171192922,0.9728931,58969.0,58968.0,0.069818]
[1724171193522,0.46133388,58969.0,58968.0,0.069818]
[1724171193715,0.9728931,58969.0,58968.0,0.069818]
[1724171193923,0.4641331,58969.0,58968.0,0.069818]
[1724171194116,0.9728931,58969.0,58968.0,0.069818]
[1724171194319,0.4641331,58969.0,58968.0,0.069818]
[1724171196520,0.46413303,58969.0,58968.0,0.069818]
[1724171199230,0.53194903,58969.0,58968.0,0.069818]
[1724171199418,0.53194903,58969.0,58963.0,0.00025446]
[1724171199419,0.067819,58967.0,58963.0,0.00025446]
[1724171199634,0.067822,58964.0,58963.0,0.06807646]
[1724171199825,0.21062142,58964.0,58963.0,0.06807646]
[1724171200525,0.2106216,58964.0,58963.0,0.00025446]
[1724171200821,0.2126216,58964.0,58963.0,0.00025446]
[1724171201323,0.2804436,58964.0,58963.0,0.00025446]
[1724171201522,0.067827,58960.0,58950.0,0.41153301]
[1724171201729,0.1434996,58959.0,58958.0,0.067829]
[1724171201914,0.3703276,58959.0,58958.0,3.837829]
[1724171202118,0.3703276,58959.0,58958.0,0.067829]
[1724171202320,0.42074563,58959.0,58958.0,0.067829]
[1724171202624,0.42076552,58959.0,58958.0,0.067829]
[1724171202818,0.42076569,58959.0,58958.0,0.067829]
[1724171203017,0.3703276,58959.0,58958.0,0.067829]
[1724171203213,0.3753276,58959.0,58958.0,0.067829]
[1724171203423,0.42577662,58959.0,58958.0,0.067829]
[1724171203620,0.42477662,58959.0,58958.0,0.067829]
[1724171203829,0.3743276,58959.0,58958.0,0.067829]
[1724171204019,0.42477625,58959.0,58958.0,0.067829]
[1724171204221,0.42878201,58959.0,58958.0,0.067829]
[1724171204420,0.35815435,58959.0,58955.0,0.067832]
[1724171204726,0.067831,58956.0,58955.0,0.067832]
[1724171204915,0.23063066,58956.0,58955.0,0.067832]
[1724171205425,0.28108501,58956.0,58955.0,0.067832]
[1724171206523,0.28308501,58956.0,58955.0,0.067832]
[1724171206725,0.067834,58954.0,58953.0,0.00025446]
[1724171207025,0.22063366,58954.0,58953.0,0.06808946]
[1724171207734,0.15279966,58954.0,58953.0,0.06808946]
[1724171207920,0.15279966,58954.0,58953.0,0.18765747]
[1724171208125,0.15279975,58954.0,58953.0,0.13692446]
[1724171208427,0.00279975,58954.0,58953.0,0.13692446]
[1724171208725,0.00279975,58954.0,58953.0,0.18763379]
[1724171209030,0.00279975,58954.0,58953.0,0.48972446]
[1724171210121,0.00279975,58954.0,58953.0,0.55741073]
[1724171210317,0.00279975,58954.0,58953.0,0.20556058]
[1724171210519,0.00279975,58954.0,58953.0,0.13792446]
[1724171210732,0.00279975,58954.0,58953.0,0.07008946]
[1724171211230,0.06783,58957.0,58956.0,0.067829]
[1724171211432,0.07062957,58957.0,58956.0,0.1185686]
[1724171212532,0.07362957,58957.0,58956.0,0.1185686]
[1724171213133,0.07362957,58957.0,58956.0,0.067829]
[1724171213438,0.07383,58957.0,58956.0,0.067829]
[1724171213738,0.24662957,58957.0,58956.0,0.067829]
[1724171213926,0.24662957,58957.0,58956.0,0.11858606]
[1724171214436,0.135668,58954.0,58953.0,0.00025446]
[1724171214628,0.30846757,58954.0,58953.0,0.00025446]
[1724171215230,0.66926757,58954.0,58953.0,0.00025446]
[1724171215835,0.66926757,58954.0,58953.0,0.00125446]
[1724171216031,0.73670514,58954.0,58953.0,0.00125446]
[1724171216339,0.73670514,58954.0,58946.0,0.428642]
[1724171216340,0.067839,58949.0,58948.0,0.05076831]
[1724171216531,0.22963902,58949.0,58948.0,3.82076831]
[1724171217235,0.22963902,58949.0,58948.0,3.77]
[1724171217631,0.22963902,58949.0,58948.0,3.771]
[1724171218436,0.22963902,58949.0,58948.0,3.772]
[1724171219942,0.22963912,58949.0,58948.0,3.772]
[1724171220538,0.16280012,58949.0,58948.0,3.839841]
[1724171221935,0.17083181,58949.0,58948.0,3.839841]
[1724171224033,0.23867081,58949.0,58948.0,3.839841]
[1724171225232,0.23867081,58949.0,58948.0,3.772]
[1724171225433,0.30650981,58949.0,58948.0,3.772]
[1724171227144,0.23867081,58949.0,58948.0,3.772]
[1724171229331,0.17083181,58949.0,58948.0,3.839841]
[1724171229536,0.17083181,58949.0,58948.0,3.89060931]
[1724171229945,0.17083181,58949.0,58948.0,4.200641]
[1724171230243,0.17083149,58949.0,58948.0,4.200641]
[1724171230443,0.17083149,58949.0,58948.0,4.26827712]
[1724171230639,0.17083149,58949.0,58948.0,4.26727712]
[1724171230941,0.17083149,58949.0,58948.0,4.200641]
[1724171231843,0.01083149,58949.0,58948.0,4.200641]
[1724171232144,0.0027998,58949.0,58948.0,4.336323]
[1724171232340,0.1856488,58954.0,58953.0,0.067835]
[1724171232547,0.3051,58954.0,58953.0,0.11862252]
[1724171232736,0.36391938,58954.0,58953.0,0.11862252]
[1724171233337,0.31336955,58954.0,58953.0,0.067835]
[1724171234044,0.36391938,58954.0,58953.0,0.067835]
[1724171234247,0.36491938,58954.0,58953.0,0.11862314]
[1724171234441,0.31436955,58954.0,58953.0,0.11862314]
[1724171234642,0.31436955,58954.0,58953.0,0.067835]
[1724171234841,0.38220355,58954.0,58953.0,0.11862314]
[1724171235037,0.38220355,58954.0,58953.0,0.067835]
[1724171235243,0.38520355,58954.0,58953.0,0.067835]
[1724171235640,0.067836,58952.0,58951.0,0.05078814]
[1724171235833,0.28839014,58952.0,58951.0,0.067837]
[1724171236546,0.237836,58952.0,58951.0,0.067837]
[1724171237048,0.17,58952.0,58951.0,0.067837]
[1724171237346,0.22054826,58952.0,58951.0,0.067837]
[1724171237536,0.22154826,58952.0,58951.0,0.067837]
[1724171237938,0.171,58952.0,58951.0,0.067837]
[1724171238741,0.172,58952.0,58951.0,0.067837]
[1724171239150,0.22155272,58952.0,58951.0,0.1355537]
[1724171239336,0.22055272,58952.0,58951.0,0.1355537]
[1724171239844,0.22155272,58952.0,58951.0,0.1355537]
[1724171240242,0.22155272,58952.0,58951.0,0.135674]
[1724171240450,0.171,58952.0,58951.0,0.135674]
[1724171241038,0.17,58952.0,58951.0,0.135674]
[1724171241550,0.171,58952.0,58951.0,0.135674]
[1724171242239,0.14336955,58954.0,58953.0,0.067835]
[1724171242437,0.31336955,58954.0,58953.0,0.49638055]
[1724171242646,0.31336955,58954.0,58953.0,0.428635]
[1724171242647,0.36392227,58954.0,58953.0,0.428635]
[1724171242848,0.38120355,58954.0,58953.0,0.428635]
[1724171243040,0.38120355,58954.0,58953.0,0.11864609]
[1724171243242,0.44853845,58954.0,58953.0,0.067835]
[1724171243450,0.44853845,58954.0,58953.0,0.11864609]
[1724171243647,0.38320355,58954.0,58953.0,0.11864609]
[1724171243950,0.38320355,58954.0,58953.0,0.11865423]
[1724171244152,0.38420355,58954.0,58953.0,0.067835]
[1724171244345,0.3890034,58954.0,58953.0,0.118659]
[1724171244545,0.3890034,58954.0,58953.0,0.067835]
[1724171245253,0.37175926,58954.0,58953.0,0.067835]
[1724171245744,0.32216929,58954.0,58953.0,0.067835]
[1724171246340,0.37175984,58954.0,58953.0,0.067835]
[1724171246745,0.37175982,58954.0,58953.0,0.067835]
[1724171246941,0.37176484,58954.0,58953.0,0.428635]
[1724171247345,0.32116927,58954.0,58953.0,0.428635]
[1724171248149,0.31816927,58954.0,58953.0,0.428635]
[1724171248351,0.01506927,58954.0,58953.0,0.428635]
[1724171248552,0.01506927,58954.0,58953.0,0.49647]
[1724171248853,0.01506927,58954.0,58953.0,4.26647]
[1724171249454,0.01226955,58954.0,58953.0,4.334305]
[1724171249762,0.0150691,58954.0,58953.0,4.334305]
[1724171250056,0.01506907,58954.0,58953.0,4.334305]
[1724171253358,0.01226955,58954.0,58953.0,4.334305]
[1724171253553,0.01506911,58954.0,58953.0,4.334305]
[1724171258457,0.01506911,58954.0,58953.0,4.198635]
[1724171258657,0.067837,58951.0,58949.0,0.06776012]
[1724171258859,0.067843,58946.0,58945.0,0.0508251]
[1724171259152,0.067844,58945.0,58944.0,0.067845]
[1724171259357,0.20944356,58945.0,58944.0,0.067845]
[1724171259974,0.20844356,58945.0,58944.0,0.067845]
[1724171260171,0.25899264,58945.0,58944.0,0.1186701]
[1724171260473,0.20744356,58945.0,58944.0,0.1186701]
[1724171260871,0.25799264,58945.0,58944.0,0.067845]
[1724171261068,0.25799264,58945.0,58944.0,0.1196701]
[1724171261272,0.2579933,58945.0,58944.0,0.068845]
[1724171261667,0.20744424,58945.0,58944.0,0.1196701]
[1724171261872,0.20744424,58945.0,58944.0,0.068845]
[1724171262067,0.20744424,58945.0,58944.0,0.1196701]
[1724171262068,0.25799332,58945.0,58944.0,0.1196701]
[1724171262271,0.40799332,58945.0,58944.0,0.1196701]
[1724171262578,0.40799332,58945.0,58944.0,0.069845]
[1724171262579,0.71824424,58945.0,58944.0,0.069845]
[1724171263572,0.79439948,58945.0,58944.0,0.002]
[1724171263776,0.13569,58944.0,58943.0,0.00025446]
[1724171263975,0.66029024,58944.0,58943.0,0.00025446]
[1724171264875,0.65499024,58944.0,58943.0,0.00025446]
[1724171265276,0.65499076,58944.0,58943.0,0.00025446]
[1724171265774,0.65499076,58944.0,58943.0,0.00125446]
[1724171266088,0.37048294,58944.0,58943.0,0.00225446]
[1724171266379,0.30319076,58944.0,58943.0,0.00225446]
[1724171266585,0.23534576,58944.0,58943.0,0.00225446]
[1724171266770,0.23534576,58944.0,58943.0,0.07010046]
[1724171267170,0.28580594,58944.0,58943.0,0.07010046]
[1724171267377,0.28580594,58944.0,58943.0,0.00225446]
[1724171267582,0.23534576,58944.0,58943.0,0.00225446]
[1724171267970,0.30319076,58944.0,58943.0,0.00225446]
[1724171268275,0.23534576,58944.0,58943.0,0.00225446]
[1724171268974,0.232545,58944.0,58943.0,0.00225446]
[1724171269178,0.23534565,58944.0,58943.0,0.00225446]
[1724171270280,0.067857,58935.0,58934.0,0.067856]
[1724171270480,0.00280065,58935.0,58934.0,0.067856]
[1724171270684,0.00280065,58935.0,58934.0,3.837856]
[1724171271886,0.00280065,58935.0,58934.0,3.838856]
[1724171272474,0.1301,58939.0,58938.0,0.067852]
[1724171272679,0.2929005,58939.0,58938.0,0.067852]
[1724171272881,0.2901,58939.0,58938.0,0.067852]
[1724171273077,0.29849501,58939.0,58937.0,0.3608]
[1724171273279,0.067853,58937.0,58936.0,0.067854]
[1724171273479,0.217853,58937.0,58936.0,0.067854]
[1724171273684,0.216853,58937.0,58936.0,0.067854]
[1724171275278,0.216853,58937.0,58936.0,0.068854]
[1724171275782,0.15,58937.0,58936.0,0.069854]
[1724171277075,0.39849501,58939.0,58938.0,0.135704]
[1724171277076,0.1301,58939.0,58938.0,0.135704]
[1724171277278,0.4642,58945.0,58944.0,0.067845]
[1724171277479,0.6042,58945.0,58944.0,0.067845]
[1724171277684,0.6042,58945.0,58944.0,3.837845]
[1724171277889,0.61274001,58945.0,58944.0,3.837845]
[1724171278785,0.47274001,58945.0,58944.0,3.837845]
[1724171279285,0.47274001,58945.0,58944.0,4.199645]
[1724171279491,0.20024,58949.0,58948.0,0.06784]
[1724171279686,0.35024,58949.0,58948.0,0.06784]
[1724171280589,0.35878698,58949.0,58948.0,0.06784]
[1724171280782,0.35878698,58949.0,58948.0,0.06884]
[1724171281583,0.29094698,58949.0,58948.0,0.06884]
[1724171281782,0.29094698,58949.0,58948.0,0.06984]
[1724171285382,0.34137015,58949.0,58948.0,0.06984]
[1724171285583,0.29094698,58949.0,58948.0,0.06984]
[1724171288489,0.29094698,58949.0,58948.0,0.1206651]
[1724171289195,0.29094698,58949.0,58948.0,0.06984]
[1724171289585,0.05909108,58949.0,58948.0,0.12061656]
[1724171289793,0.00025446,58951.0,58950.0,0.135676]
[1724171290186,0.00025446,58951.0,58950.0,1.044596]
[1724171290397,0.137,58957.0,58950.0,4.746758]
[1724171290688,0.00232,58961.0,58960.0,0.067827]
[1724171290888,0.0505441,58963.0,58962.0,0.067824]
[1724171291092,0.0505441,58964.0,58963.0,0.067823]
[1724171291292,0.0505441,58965.0,58964.0,0.067822]
[1724171291483,0.20722,58966.0,58963.0,3.77]
[1724171291484,0.20722,58966.0,58965.0,0.067821]
[1724171291690,0.21538653,58966.0,58965.0,0.067821]
[1724171291894,0.2181857,58966.0,58965.0,0.067821]
[1724171292288,0.2181857,58966.0,58965.0,3.837821]
[1724171292787,0.1593657,58966.0,58965.0,3.838821]
[1724171293098,0.0199657,58966.0,58965.0,3.838821]
[1724171294289,0.01179917,58966.0,58965.0,4.747581]
[1724171294495,0.00025446,58970.0,58969.0,0.067816]
[1724171294699,0.00859235,58970.0,58969.0,0.428616]
[1724171294893,0.1394,58974.0,58973.0,0.067812]
[1724171295100,0.067802,58982.0,58970.0,0.3608]
[1724171295302,0.067802,58982.0,58979.0,0.067805]
[1724171295303,0.1297,58981.0,58979.0,0.067805]
[1724171295693,0.197503,58981.0,58979.0,0.067805]
[1724171296396,0.197503,58981.0,58979.0,0.068805]
[1724171296397,0.206503,58981.0,58979.0,0.068805]
[1724171296597,0.206503,58981.0,58980.0,0.067804]
[1724171296789,0.1387,58981.0,58980.0,0.067804]
[1724171297197,0.1387,58981.0,58980.0,3.837804]
[1724171298103,0.1297,58981.0,58980.0,3.838804]
[1724171298797,0.1377,58981.0,58980.0,3.838804]
[1724171299104,0.1377,58981.0,58980.0,3.839804]
[1724171300001,0.1377,58981.0,58980.0,0.069804]
[1724171300505,0.1377,58981.0,58980.0,3.839804]
[1724171301397,0.1377,58981.0,58980.0,0.069804]
[1724171302793,0.205503,58981.0,58980.0,0.069804]
[1724171306696,0.205503,58981.0,58980.0,3.839804]
[1724171307499,0.375503,58981.0,58980.0,3.839804]
[1724171318412,0.516203,58981.0,58980.0,3.839804]
[1724171319515,0.5667471,58981.0,58980.0,3.839804]
[1724171320503,0.516203,58981.0,58980.0,3.839804]
[1724171321114,0.56689182,58981.0,58980.0,3.839804]
[1724171321413,0.516203,58981.0,58980.0,3.89054744]
[1724171322413,0.516203,58981.0,58980.0,3.839804]
[1724171322615,0.375503,58981.0,58980.0,3.839804]
[1724171322804,0.375503,58981.0,58980.0,4.341304]
[1724171323210,0.42624305,58981.0,58980.0,4.341304]
[1724171323424,0.35844005,58981.0,58980.0,4.341304]
[1724171323620,0.3077,58981.0,58980.0,4.341304]
[1724171323916,0.3087,58981.0,58980.0,4.409108]
[1724171324905,0.3087,58981.0,58980.0,4.49374404]
[1724171325416,0.3087,58981.0,58980.0,4.409108]
[1724171325819,0.35949785,58981.0,58980.0,4.62288616]
[1724171326015,0.35949785,58981.0,58980.0,4.53825012]
[1724171326510,0.35949785,58981.0,58980.0,4.62297642]
[1724171327315,0.35949785,58981.0,58980.0,4.6229753]
[1724171328212,0.35951857,58981.0,58980.0,4.6229666]
[1724171329220,0.18951857,58981.0,58980.0,4.49382569]
[1724171330715,0.18951857,58981.0,58980.0,4.409108]
[1724171333222,0.274306,58981.0,58980.0,4.200604]
[1724171333522,0.34206409,58981.0,58980.0,4.26832842]
[1724171333717,0.34206409,58981.0,58980.0,4.200604]
[1724171334314,0.1387,58981.0,58980.0,4.200604]
[1724171334918,0.20646207,58981.0,58980.0,4.200604]
[1724171335118,0.20645971,58981.0,58980.0,4.200604]
[1724171335522,0.1387,58981.0,58980.0,3.839804]
[1724171335825,0.565006,58981.0,58980.0,3.772]
[1724171336225,0.565006,58981.0,58980.0,3.839804]
[1724171337317,0.497203,58981.0,58980.0,3.839804]
[1724171337520,0.497203,58981.0,58980.0,3.90750723]
[1724171338228,0.497203,58981.0,58980.0,3.839804]
[1724171342919,0.497203,58981.0,58980.0,3.90750723]
[1724171343824,0.497203,58981.0,58980.0,3.83970323]
[1724171344129,0.497203,58981.0,58980.0,3.90750723]
[1724171347027,0.497203,58981.0,58980.0,3.839804]
[1724171347231,0.497203,58981.0,58980.0,3.90750723]
[1724171347425,0.497203,58981.0,58980.0,3.839804]
[1724171351843,0.2887,58981.0,58980.0,4.048308]
[1724171354338,0.2887,58981.0,58980.0,3.907608]
[1724171354741,0.4294,58981.0,58980.0,3.907608]
[1724171355148,0.4294,58981.0,58980.0,3.839804]
[1724171355441,0.4294,58981.0,58980.0,3.90755374]
[1724171355643,0.4294,58981.0,58980.0,3.839804]
[1724171356530,0.497203,58981.0,58980.0,3.839804]
[1724171357645,0.356503,58981.0,58980.0,3.839804]
[1724171360950,0.356503,58981.0,58980.0,4.200604]
[1724171361744,0.2887,58981.0,58980.0,4.341304]
[1724171362142,0.2887,58981.0,58980.0,4.409108]
[1724171362143,0.35649916,58981.0,58980.0,4.409108]
[1724171362543,0.2887,58981.0,58980.0,4.409108]
[1724171363349,0.35649916,58981.0,58980.0,4.409108]
[1724171363551,0.35649916,58981.0,58980.0,4.341304]
[1724171363862,0.35649916,58981.0,58980.0,4.409108]
[1724171364155,0.2887,58981.0,58980.0,4.409108]
[1724171364753,0.2887,58981.0,58980.0,4.49382569]
[1724171364951,0.2887,58981.0,58980.0,4.62296647]
[1724171365344,0.2887,58981.0,58980.0,4.42602169]
[1724171365541,0.2887,58981.0,58980.0,4.49382569]
[1724171365746,0.2887,58981.0,58980.0,4.341304]
[1724171366251,0.2887,58981.0,58980.0,4.409108]
[1724171366750,0.2887,58981.0,58980.0,4.341304]
[1724171367051,0.2887,58981.0,58980.0,4.409108]
[1724171367052,0.159,58981.0,58980.0,4.409108]
[1724171367347,0.06779916,58985.0,58981.0,0.067803]
[1724171367545,0.06779916,58985.0,58984.0,0.1407]
[1724171367740,0.06805362,58986.0,58985.0,0.067798]
[1724171367946,0.00025446,58986.0,58985.0,3.905596]
[1724171368848,0.00305255,58986.0,58985.0,3.905596]
[1724171369051,0.01105255,58986.0,58985.0,3.906596]
[1724171369850,0.07984955,58986.0,58985.0,3.90747386]
[1724171371455,0.07984955,58986.0,58985.0,4.26827386]
[1724171371752,0.07984954,58986.0,58985.0,4.26827386]
[1724171372254,0.07984954,58986.0,58985.0,4.200598]
[1724171372853,0.07984954,58986.0,58985.0,4.26827386]
[1724171372854,0.22054954,58986.0,58985.0,4.26827386]
[1724171373050,0.2883487,58986.0,58985.0,4.200598]
[1724171373452,0.5061457,58986.0,58985.0,4.1328]
[1724171373754,0.43834654,58986.0,58985.0,3.772]
[1724171375450,0.29484846,58986.0,58985.0,3.772]
[1724171375652,0.43834681,58986.0,58985.0,3.772]
[1724171376555,0.43464681,58986.0,58985.0,3.772]
[1724171377353,0.29394681,58986.0,58985.0,3.772]
[1724171377654,0.43464681,58986.0,58985.0,3.772]
[1724171377955,0.22614981,58986.0,58985.0,3.772]
[1724171378753,0.22614981,58986.0,58985.0,3.839798]
[1724171382953,0.22614981,58986.0,58985.0,3.90747386]
[1724171382954,0.29389728,58986.0,58985.0,3.90747386]
[1724171383155,0.29109893,58986.0,58985.0,3.839798]
[1724171383356,0.22614961,58986.0,58985.0,4.26827386]
[1724171383860,0.36684961,58986.0,58985.0,4.26827386]
[1724171384054,0.29389708,58986.0,58985.0,4.200598]
[1724171384254,0.22614961,58986.0,58985.0,4.200598]
[1724171386960,0.15835261,58986.0,58985.0,4.200598]
[1724171387149,0.15835253,58986.0,58985.0,4.200598]
[1724171387347,0.15555446,58986.0,58985.0,4.200598]
[1724171387555,0.00835253,58986.0,58985.0,4.268396]
[1724171388656,0.00835253,58986.0,58985.0,4.200598]
[1724171388852,0.14905253,58986.0,58985.0,4.200598]
[1724171389656,0.00835253,58986.0,58985.0,4.200598]
[1724171390761,0.00835253,58986.0,58985.0,4.409096]
[1724171390966,0.00555446,58986.0,58985.0,4.409096]
[1724171391264,0.00835243,58986.0,58985.0,4.409096]
[1724171392259,0.05916322,58986.0,58985.0,4.409096]
[1724171393764,0.0591632,58986.0,58985.0,4.409096]
[1724171394258,0.1991632,58986.0,58985.0,4.409096]
[1724171394659,0.14835241,58986.0,58985.0,4.409096]
[1724171394865,0.19915914,58986.0,58985.0,4.409096]
[1724171396567,0.14835241,58986.0,58985.0,4.409096]
[1724171399073,0.14555446,58986.0,58985.0,4.409096]
[1724171399270,0.05915183,58986.0,58985.0,4.409096]
[1724171400164,0.09305002,58986.0,58985.0,4.409096]
[1724171400659,0.09305002,58986.0,58985.0,4.200598]
[1724171400860,0.33778654,58986.0,58985.0,3.839798]
[1724171401061,0.19582539,58986.0,58985.0,3.980498]
[1724171401575,0.19302745,58986.0,58985.0,3.980498]
[1724171401769,0.19582546,58986.0,58985.0,3.980498]
[1724171403060,0.16835247,58986.0,58985.0,3.980498]
[1724171404660,0.16835247,58986.0,58985.0,4.048296]
[1724171404661,0.00835247,58986.0,58985.0,4.048296]
[1724171404865,0.05915037,58986.0,58985.0,4.048296]
[1724171405463,0.05915026,58986.0,58985.0,4.048296]
[1724171406072,0.00835236,58986.0,58985.0,4.048296]
[1724171406872,0.00835236,58986.0,58985.0,4.53822328]
[1724171407665,0.00835236,58986.0,58985.0,4.89902328]
[1724171408380,0.00025446,58991.0,58985.0,5.67202728]
[1724171408672,0.16720274,59000.0,58999.0,0.067782]
[1724171408878,0.11919725,59000.0,58999.0,0.704846]
[1724171409076,0.01053809,59005.0,59004.0,0.067776]
[1724171409373,0.2393,59007.0,59004.0,0.56907639]
[1724171409766,0.24987967,59007.0,59005.0,3.77]
[1724171409971,0.13167967,59007.0,59006.0,0.067774]
[1724171410171,0.13167967,59007.0,59006.0,0.13535039]
[1724171410471,0.13167967,59007.0,59006.0,0.067774]
[1724171410679,0.13167967,59007.0,59006.0,3.837774]
[1724171410872,0.13167967,59007.0,59006.0,3.8884065]
[1724171411082,0.13167967,59007.0,59006.0,3.88840077]
[1724171411378,0.13167967,59007.0,59006.0,3.837774]
[1724171411773,0.13167967,59007.0,59006.0,3.90535039]
[1724171411977,0.13167967,59007.0,59006.0,3.837774]
[1724171412180,0.13167967,59007.0,59006.0,3.838774]
[1724171412675,0.13167967,59007.0,59006.0,3.90719326]
[1724171413477,0.13167967,59007.0,59006.0,3.839774]
[1724171414368,0.13167967,59007.0,59006.0,3.907548]
[1724171414767,0.01057967,59007.0,59006.0,3.907548]
[1724171414975,0.1164,59008.0,59007.0,0.135546]
[1724171415176,0.1164,59008.0,59007.0,0.637046]
[1724171416375,0.1164,59008.0,59007.0,0.638046]
[1724171417975,0.1164,59008.0,59007.0,0.639046]
[1724171418177,0.17657637,59008.0,59007.0,0.706819]
[1724171418477,0.10370676,59012.0,59011.0,0.067768]
[1724171418679,0.06017629,59012.0,59011.0,0.704804]
[1724171418867,0.06017629,59012.0,59011.0,1.213164]
[1724171419071,0.02746036,59012.0,59011.0,5.383164]
[1724171419376,0.02746036,59012.0,59011.0,4.407036]
[1724171419677,0.06017459,59012.0,59011.0,4.407036]
[1724171419868,0.06017459,59012.0,59011.0,4.408036]
[1724171420075,0.02746036,59012.0,59011.0,4.408036]
[1724171420280,0.06017459,59012.0,59011.0,4.408036]
[1724171420471,0.02746036,59012.0,59011.0,4.408036]
[1724171420669,0.06017459,59012.0,59011.0,4.408036]
[1724171420874,0.02746036,59012.0,59011.0,4.408036]
[1724171421183,0.06017459,59012.0,59011.0,4.409036]
[1724171421379,0.02746036,59012.0,59011.0,4.409036]
[1724171421575,0.06017459,59012.0,59011.0,4.409036]
[1724171421768,0.02746036,59012.0,59011.0,4.408036]
[1724171421973,0.02746036,59012.0,59011.0,4.409036]
[1724171422275,0.06017459,59012.0,59011.0,4.409036]
[1724171422476,0.02746036,59012.0,59011.0,4.409036]
[1724171422772,0.06017459,59012.0,59011.0,4.409036]
[1724171422977,0.2429,59016.0,59012.0,0.067766]
[1724171423177,0.06017398,59015.0,59014.0,0.067765]
[1724171423376,0.23017398,59015.0,59014.0,0.067765]
[1724171423573,0.73853398,59015.0,59012.0,0.067766]
[1724171423776,0.067767,59013.0,59012.0,0.067766]
[1724171423983,0.28794098,59013.0,59012.0,0.067766]
[1724171424481,0.066767,59012.0,59011.0,3.771]
[1724171424786,0.27694098,59012.0,59011.0,3.838768]
[1724171425079,0.35087398,59012.0,59011.0,3.838768]
[1724171425468,0.20917398,59012.0,59011.0,3.838768]
[1724171426075,0.34469017,59012.0,59011.0,3.838768]
[1724171426277,0.2429,59016.0,59015.0,0.135528]
[1724171426674,0.067767,59013.0,59011.0,4.1318]
[1724171426874,0.067767,59012.0,59011.0,4.1308]
[1724171427068,0.237767,59012.0,59011.0,4.198568]
[1724171427382,0.379467,59012.0,59011.0,4.199568]
[1724171427581,0.3117,59012.0,59011.0,4.199568]
[1724171427881,0.001,59012.0,59011.0,4.199568]
[1724171429382,0.2429,59016.0,59015.0,0.067764]
[1724171430778,0.067752,59026.0,59020.0,0.067758]
[1724171430970,0.2595,59021.0,59020.0,0.428558]
[1724171431170,0.1195,59021.0,59020.0,0.496316]
[1724171431675,0.1195,59021.0,59020.0,4.266316]
[1724171432193,0.1205,59021.0,59020.0,4.267316]
[1724171432378,0.1205,59021.0,59020.0,4.31773827]
[1724171432972,0.1205,59021.0,59020.0,4.267316]
[1724171433171,0.2429281,59021.0,59020.0,4.06499147]
[1724171433386,0.18942181,59021.0,59020.0,4.06499147]
[1724171433575,0.2429281,59021.0,59020.0,4.06499147]
[1724171433775,0.1234281,59021.0,59020.0,5.04102947]
[1724171434180,0.06992181,59021.0,59020.0,5.04102947]
[1724171434887,0.1234281,59021.0,59020.0,5.04102947]
[1724171435090,0.22161159,59021.0,59020.0,5.10878747]
[1724171435277,0.06992181,59021.0,59020.0,5.10878747]
[1724171435474,0.32471748,59021.0,59020.0,4.99014861]
[1724171435679,0.34157422,59021.0,59020.0,4.99014861]
[1724171436182,0.20982522,59021.0,59020.0,4.99014861]
[1724171436488,0.1233,59032.0,59031.0,0.13549]
[1724171436679,0.1233,59032.0,59031.0,0.49629]
[1724171437495,0.1233,59032.0,59031.0,0.428545]
[1724171437783,0.13362788,59032.0,59031.0,0.428545]
[1724171438188,0.13362788,59032.0,59031.0,0.49729]
[1724171438481,0.1233,59032.0,59031.0,0.85809]
[1724171438785,0.1233,59032.0,59031.0,0.85909]
[1724171438987,0.1233,59032.0,59031.0,4.62909]
[1724171439192,0.1233,59032.0,59031.0,4.63931936]
[1724171439486,0.067732,59043.0,59034.0,0.067742]
[1724171439697,0.1191,59038.0,59037.0,0.135476]
[1724171439983,0.1191,59038.0,59037.0,0.496276]
[1724171441088,0.1208,59045.0,59044.0,0.06773]
[1724171441688,0.1208,59045.0,59044.0,3.83773]
[1724171441891,0.06772,59054.0,59045.0,0.067729]
[1724171442090,0.06772,59054.0,59053.0,0.06772]
[1724171442281,0.1229,59057.0,59054.0,0.067719]
[1724171442282,0.1118,59055.0,59054.0,0.067719]
[1724171442890,0.12227686,59055.0,59054.0,0.067719]
[1724171443289,0.067722,59052.0,59051.0,0.067722]
[1724171443692,0.066722,59052.0,59051.0,0.067722]
[1724171444090,0.065722,59052.0,59051.0,0.067722]
[1724171444997,0.065722,59052.0,59051.0,0.068722]
[1724171445590,0.18999486,59055.0,59054.0,0.067719]
[1724171445796,0.34999486,59055.0,59054.0,0.067719]
[1724171445995,0.067721,59052.0,59051.0,0.068722]
[1724171446198,0.217721,59052.0,59051.0,0.068722]